[Event "MČR juniorů a juniorek v rapid šachu 2024"]
[Site "Hotel Fit Fun, Harrachov, Czech Republic"]
[Date "2024.09.21"]
[Round "5.27"]
[White "Dorazilova Kristyna"]
[Black "Plzak David"]
[Result "1-0"]
[TimeControl "20+5"]
[WhiteFideId "23739142"]
[BlackFideId "23776234"]
[WhiteElo "1771"]
[BlackElo "1625"]

1. e4 {[%clk 00:20:09]} {[%emt 00:08:17]} c5 {[%clk 00:20:09]} {[%emt
00:00:01]} 2. Nc3 {[%clk 00:20:14]} Nc6 {[%clk 00:20:13]} {[%emt 00:00:02]} 3.
Bb5 {[%clk 00:20:18]} {[%emt 00:00:01]} Nd4 {[%clk 00:20:17]} {[%emt 00:00:01]}
4. Nf3 {[%clk 00:20:22]} {[%emt 00:00:01]} a6 {[%clk 00:20:12]} {[%emt
00:00:10]} 5. Be2 {[%clk 00:20:22]} {[%emt 00:00:05]} g6 {[%clk 00:19:49]}
{[%emt 00:00:27]} 6. d3 {[%clk 00:20:26]} Bg7 {[%clk 00:19:52]} {[%emt
00:00:03]} 7. O-O {[%clk 00:20:29]} {[%emt 00:00:03]} d6 {[%clk 00:19:11]}
{[%emt 00:00:45]} 8. Be3 {[%clk 00:20:30]} {[%emt 00:00:05]} Nxe2+ {[%clk
00:17:33]} {[%emt 00:01:43]} 9. Qxe2 {[%clk 00:20:29]} {[%emt 00:00:06]} Nf6
{[%clk 00:17:33]} {[%emt 00:00:04]} 10. Qd2 {[%clk 00:20:31]} {[%emt 00:00:04]}
Ng4 {[%clk 00:16:48]} {[%emt 00:00:49]} 11. Bf4 {[%clk 00:20:35]} O-O {[%clk
00:16:50]} {[%emt 00:00:04]} 12. h3 {[%clk 00:20:39]} Nf6 {[%clk 00:16:53]}
{[%emt 00:00:03]} 13. Bh6 {[%clk 00:20:43]} {[%emt 00:00:01]} Be6 {[%clk
00:16:05]} {[%emt 00:00:54]} 14. Nh2 {[%clk 00:20:15]} {[%emt 00:00:33]} b5
{[%clk 00:14:34]} {[%emt 00:01:36]} 15. Bxg7 {[%clk 00:20:10]} {[%emt
00:00:10]} Kxg7 {[%clk 00:14:37]} {[%emt 00:00:02]} 16. f4 {[%clk 00:20:14]}
{[%emt 00:00:01]} b4 {[%clk 00:13:28]} {[%emt 00:01:14]} 17. Ne2 {[%clk
00:20:17]} {[%emt 00:00:02]} Qc8 {[%clk 00:11:58]} {[%emt 00:01:35]} 18. Ng3
{[%clk 00:20:04]} {[%emt 00:00:18]} Rb8 {[%clk 00:11:01]} {[%emt 00:01:02]} 19.
f5 {[%clk 00:19:04]} {[%emt 00:01:04]} Bd7 {[%clk 00:11:04]} {[%emt 00:00:02]}
20. b3 {[%clk 00:18:36]} {[%emt 00:00:33]} a5 {[%clk 00:10:33]} {[%emt
00:00:37]} 21. a4 {[%clk 00:18:23]} {[%emt 00:00:18]} Qc7 {[%clk 00:10:02]}
{[%emt 00:00:35]} 22. Ng4 {[%clk 00:16:48]} {[%emt 00:01:39]} Nxg4 {[%clk
00:09:37]} {[%emt 00:00:30]} 23. hxg4 {[%clk 00:16:52]} {[%emt 00:00:01]} d5
{[%clk 00:09:39]} {[%emt 00:00:04]} 24. Kf2 {[%clk 00:16:02]} {[%emt 00:00:54]}
dxe4 {[%clk 00:09:07]} {[%emt 00:00:37]} 25. dxe4 {[%clk 00:16:06]} {[%emt
00:00:01]} Rbd8 {[%clk 00:09:06]} {[%emt 00:00:06]} 26. Qe3 {[%clk 00:15:24]}
{[%emt 00:00:48]} Bc6 {[%clk 00:08:21]} {[%emt 00:00:48]} 27. Rh1 {[%clk
00:15:21]} {[%emt 00:00:09]} Rh8 {[%clk 00:07:42]} {[%emt 00:00:44]} 28. Qh6+
{[%clk 00:14:17]} {[%emt 00:01:10]} Kg8 {[%clk 00:07:32]} {[%emt 00:00:14]} 29.
Rad1 {[%clk 00:13:27]} {[%emt 00:00:55]} Rd6 {[%clk 00:06:45]} {[%emt
00:00:53]} 30. e5 {[%clk 00:12:55]} {[%emt 00:00:37]} Rd8 {[%clk 00:04:27]}
{[%emt 00:02:22]} 31. f6 {[%clk 00:12:45]} {[%emt 00:00:15]} 1-0



[ePGN "0.1;DGT LiveChess/2.2.6"]

[Event "MČR juniorů a juniorek v rapid šachu 2024"]
[Site "Hotel Fit Fun, Harrachov, Czech Republic"]
[Date "2024.09.21"]
[Round "5.28"]
[White "Hudik Martin"]
[Black "Nespora Tatana"]
[Result "0-1"]
[TimeControl "20+5"]
[WhiteFideId "23769947"]
[BlackFideId "392286"]
[WhiteElo "1572"]
[BlackElo "1697"]

1. e4 {[%clk 00:20:08]} {[%emt 00:00:02]} c5 {[%clk 00:20:09]} {[%emt
00:00:01]} 2. Nf3 {[%clk 00:20:11]} {[%emt 00:00:02]} Nc6 {[%clk 00:20:12]}
{[%emt 00:00:01]} 3. d4 {[%clk 00:19:57]} {[%emt 00:00:19]} cxd4 {[%clk
00:20:15]} {[%emt 00:00:02]} 4. Nxd4 {[%clk 00:20:01]} {[%emt 00:00:02]} Nf6
{[%clk 00:20:18]} {[%emt 00:00:02]} 5. Nc3 {[%clk 00:20:04]} {[%emt 00:00:02]}
e5 {[%clk 00:20:22]} {[%emt 00:00:01]} 6. Ndb5 {[%clk 00:20:07]} {[%emt
00:00:02]} d6 {[%clk 00:20:24]} {[%emt 00:00:02]} 7. Bg5 {[%clk 00:20:02]}
{[%emt 00:00:10]} a6 {[%clk 00:20:28]} {[%emt 00:00:02]} 8. Na3 {[%clk
00:20:06]} {[%emt 00:00:01]} b5 {[%clk 00:20:32]} {[%emt 00:00:01]} 9. Nd5
{[%clk 00:20:09]} {[%emt 00:00:02]} Be7 {[%clk 00:20:35]} {[%emt 00:00:01]} 10.
Bxf6 {[%clk 00:20:04]} {[%emt 00:00:11]} Bxf6 {[%clk 00:20:38]} {[%emt
00:00:02]} 11. c4 {[%clk 00:19:09]} {[%emt 00:00:59]} b4 {[%clk 00:20:30]}
{[%emt 00:00:14]} 12. Nc2 {[%clk 00:19:10]} {[%emt 00:00:05]} a5 {[%clk
00:20:33]} 13. Be2 {[%clk 00:18:51]} {[%emt 00:00:23]} Bg5 {[%clk 00:20:35]}
{[%emt 00:00:04]} 14. O-O {[%clk 00:18:29]} {[%emt 00:00:27]} O-O {[%clk
00:20:37]} {[%emt 00:00:03]} 15. Ne1 {[%clk 00:18:08]} {[%emt 00:00:27]} Nb8
{[%clk 00:19:48]} {[%emt 00:00:54]} 16. Nd3 {[%clk 00:16:18]} {[%emt 00:01:55]}
Na6 {[%clk 00:19:25]} {[%emt 00:00:27]} 17. f4 {[%clk 00:15:18]} {[%emt
00:01:05]} exf4 {[%clk 00:18:48]} {[%emt 00:00:42]} 18. N3xf4 {[%clk 00:15:14]}
{[%emt 00:00:09]} Nc5 {[%clk 00:18:49]} {[%emt 00:00:04]} 19. Qc2 {[%clk
00:14:37]} {[%emt 00:00:42]} Rb8 {[%clk 00:18:04]} {[%emt 00:00:51]} 20. b3
{[%clk 00:14:26]} {[%emt 00:00:15]} Bf6 21. Nxf6+ {[%clk 00:12:35]} Qxf6 {[%clk
00:17:53]} {[%emt 00:00:02]} 22. Kh1 {[%clk 00:12:05]} {[%emt 00:00:34]} Qd4
{[%clk 00:17:30]} {[%emt 00:00:28]} 23. Bf3 {[%clk 00:10:51]} {[%emt 00:01:19]}
Bb7 {[%clk 00:16:17]} {[%emt 00:01:19]} 24. Nd5 {[%clk 00:10:31]} {[%emt
00:00:25]} Rbe8 {[%clk 00:15:33]} {[%emt 00:00:48]} 25. Rad1 {[%clk 00:09:40]}
{[%emt 00:00:57]} Qe5 {[%clk 00:15:36]} {[%emt 00:00:02]} 26. Rfe1 {[%clk
00:08:50]} {[%emt 00:00:55]} f5 {[%clk 00:15:05]} {[%emt 00:00:37]} 27. Re3
{[%clk 00:06:19]} {[%emt 00:02:35]} fxe4 {[%clk 00:14:36]} {[%emt 00:00:34]} 28.
Nc7 {[%clk 00:04:00]} {[%emt 00:02:24]} Re7 {[%clk 00:13:13]} {[%emt 00:01:28]}
29. Nd5 {[%clk 00:04:02]} {[%emt 00:00:03]} Ref7 {[%clk 00:12:51]} {[%emt
00:00:26]} 30. Kg1 {[%clk 00:02:43]} {[%emt 00:01:24]} Bxd5 {[%clk 00:11:04]}
{[%emt 00:01:52]} 31. Rxd5 {[%clk 00:02:24]} {[%emt 00:00:23]} Qf4 {[%clk
00:11:02]} {[%emt 00:00:07]} 32. Qd2 {[%clk 00:01:07]} {[%emt 00:01:23]} exf3
{[%clk 00:10:45]} {[%emt 00:00:21]} 33. Rd4 {[%clk 00:00:51]} {[%emt 00:00:22]}
f2+ {[%clk 00:10:32]} {[%emt 00:00:17]} 0-1



[ePGN "0.1;DGT LiveChess/2.2.6"]

[Event "MČR juniorů a juniorek v rapid šachu 2024"]
[Site "Hotel Fit Fun, Harrachov, Czech Republic"]
[Date "2024.09.21"]
[Round "5.29"]
[White "Martinkovicova Nela"]
[Black "Boff Vojtech"]
[Result "1-0"]
[TimeControl "20+5"]
[WhiteFideId "23715596"]
[BlackFideId "23733969"]
[WhiteElo "1446"]
[BlackElo "1719"]

1. e4 {[%clk 00:20:08]} {[%emt 00:00:01]} c5 {[%clk 00:20:07]} {[%emt
00:00:02]} 2. c4 {[%clk 00:20:12]} {[%emt 00:00:02]} Nc6 {[%clk 00:20:09]}
{[%emt 00:00:03]} 3. Nc3 {[%clk 00:20:10]} {[%emt 00:00:07]} d6 {[%clk
00:20:10]} {[%emt 00:00:04]} 4. d3 {[%clk 00:20:11]} {[%emt 00:00:04]} g6
{[%clk 00:20:04]} {[%emt 00:00:11]} 5. g3 {[%clk 00:20:12]} {[%emt 00:00:04]}
Bg7 {[%clk 00:20:07]} {[%emt 00:00:01]} 6. Bg2 {[%clk 00:20:16]} Nf6 {[%clk
00:20:05]} {[%emt 00:00:09]} 7. Nge2 {[%clk 00:20:06]} {[%emt 00:00:15]} O-O
{[%clk 00:20:02]} {[%emt 00:00:06]} 8. Bg5 {[%clk 00:20:02]} {[%emt 00:00:11]}
h6 {[%clk 00:19:41]} {[%emt 00:00:25]} 9. Be3 {[%clk 00:19:52]} {[%emt
00:00:16]} Nd7 {[%clk 00:19:36]} {[%emt 00:00:10]} 10. O-O {[%clk 00:19:34]}
{[%emt 00:00:23]} f5 {[%clk 00:19:35]} {[%emt 00:00:05]} 11. f4 {[%clk
00:19:25]} {[%emt 00:00:14]} fxe4 {[%clk 00:19:37]} {[%emt 00:00:04]} 12. Bxe4
{[%clk 00:19:24]} {[%emt 00:00:06]} Kh7 {[%clk 00:19:26]} {[%emt 00:00:16]} 13.
f5 {[%clk 00:19:13]} {[%emt 00:00:16]} gxf5 {[%clk 00:19:25]} {[%emt 00:00:06]}
14. Bxf5+ {[%clk 00:19:09]} {[%emt 00:00:09]} Kh8 {[%clk 00:19:27]} {[%emt
00:00:02]} 15. Qd2 {[%clk 00:18:30]} {[%emt 00:00:44]} Rf6 {[%clk 00:19:16]}
{[%emt 00:00:16]} 16. Be4 {[%clk 00:17:38]} {[%emt 00:00:58]} e6 {[%clk
00:18:47]} {[%emt 00:00:34]} 17. Rxf6 {[%clk 00:16:52]} {[%emt 00:00:51]} Qxf6
{[%clk 00:18:45]} {[%emt 00:00:06]} 18. Rf1 {[%clk 00:16:46]} {[%emt 00:00:11]}
Qe7 {[%clk 00:18:25]} {[%emt 00:00:25]} 19. Bxh6 {[%clk 00:16:33]} {[%emt
00:00:19]} Nf6 {[%clk 00:18:03]} {[%emt 00:00:26]} 20. Qg5 {[%clk 00:13:10]}
{[%emt 00:03:28]} Nxe4 {[%clk 00:17:54]} {[%emt 00:00:14]} 21. Bxg7+ {[%clk
00:11:06]} {[%emt 00:02:10]} Qxg7 {[%clk 00:17:57]} 22. Qh4+ {[%clk 00:10:28]}
{[%emt 00:00:43]} Kg8 {[%clk 00:17:35]} {[%emt 00:00:27]} 23. Nxe4 {[%clk
00:09:54]} {[%emt 00:00:39]} Bd7 {[%clk 00:16:43]} {[%emt 00:00:57]} 24. Nf6+
{[%clk 00:09:39]} {[%emt 00:00:20]} 1-0



[ePGN "0.1;DGT LiveChess/2.2.6"]

[Event "MČR juniorů a juniorek v rapid šachu 2024"]
[Site "Hotel Fit Fun, Harrachov, Czech Republic"]
[Date "2024.09.21"]
[Round "5.3"]
[White "Jun Rudolf"]
[Black "Sichrovsky Tomas"]
[Result "1/2-1/2"]
[TimeControl "20+5"]
[WhiteFideId "376612"]
[BlackFideId "23704730"]
[WhiteElo "2142"]
[BlackElo "1928"]

1. e4 {[%clk 00:20:08]} c6 {[%clk 00:20:10]} {[%emt 00:00:01]} 2. d4 {[%clk
00:20:06]} {[%emt 00:00:07]} d5 {[%clk 00:20:13]} {[%emt 00:00:01]} 3. exd5
{[%clk 00:20:10]} {[%emt 00:00:02]} cxd5 {[%clk 00:20:17]} {[%emt 00:00:01]} 4.
Bd3 {[%clk 00:20:14]} Nc6 {[%clk 00:20:21]} {[%emt 00:00:01]} 5. c3 {[%clk
00:20:18]} Nf6 {[%clk 00:20:25]} {[%emt 00:00:02]} 6. Nf3 {[%clk 00:20:21]} g6
{[%clk 00:20:29]} {[%emt 00:00:03]} 7. O-O {[%clk 00:20:23]} {[%emt 00:00:02]}
Bf5 {[%clk 00:20:33]} {[%emt 00:00:02]} 8. Re1 {[%clk 00:20:04]} {[%emt
00:00:24]} Bxd3 {[%clk 00:20:30]} {[%emt 00:00:08]} 9. Qxd3 {[%clk 00:20:07]}
{[%emt 00:00:02]} Bg7 {[%clk 00:20:28]} {[%emt 00:00:07]} 10. h3 {[%clk
00:20:02]} {[%emt 00:00:09]} O-O {[%clk 00:20:27]} {[%emt 00:00:07]} 11. Bf4
{[%clk 00:20:05]} {[%emt 00:00:02]} a6 {[%clk 00:20:26]} {[%emt 00:00:07]} 12.
Nbd2 {[%clk 00:20:04]} {[%emt 00:00:06]} b5 {[%clk 00:20:19]} {[%emt 00:00:13]}
13. Ne5 {[%clk 00:19:41]} {[%emt 00:00:26]} Na5 {[%clk 00:19:58]} {[%emt
00:00:26]} 14. a4 {[%clk 00:17:02]} {[%emt 00:02:45]} Qb6 {[%clk 00:17:27]}
{[%emt 00:02:37]} 15. b4 {[%clk 00:16:30]} {[%emt 00:00:37]} Nc4 {[%clk
00:17:11]} {[%emt 00:00:20]} 16. Ndxc4 {[%clk 00:15:55]} {[%emt 00:00:40]} bxc4
{[%clk 00:16:57]} {[%emt 00:00:20]} 17. Qe3 {[%clk 00:15:39]} {[%emt 00:00:20]}
Ra7 {[%clk 00:15:38]} {[%emt 00:01:24]} 18. Ng4 {[%clk 00:15:06]} {[%emt
00:00:38]} Ne4 {[%clk 00:14:37]} {[%emt 00:01:06]} 19. Rad1 {[%clk 00:10:20]}
{[%emt 00:04:50]} Qc6 {[%clk 00:12:31]} {[%emt 00:02:12]} 20. Ra1 {[%clk
00:09:50]} {[%emt 00:00:35]} Qb6 {[%clk 00:12:35]} {[%emt 00:00:01]} 21. Rad1
{[%clk 00:09:28]} {[%emt 00:00:27]} Qc6 {[%clk 00:12:38]} {[%emt 00:00:02]} 22.
a5 {[%clk 00:09:32]} {[%emt 00:00:01]} Re8 {[%clk 00:08:59]} {[%emt 00:03:44]}
23. f3 {[%clk 00:08:40]} {[%emt 00:00:56]} Nd6 {[%clk 00:08:55]} {[%emt
00:00:10]} 24. Bxd6 {[%clk 00:07:34]} {[%emt 00:01:12]} Qxd6 {[%clk 00:08:58]}
{[%emt 00:00:02]} 25. Ne5 {[%clk 00:07:37]} {[%emt 00:00:01]} e6 {[%clk
00:06:57]} {[%emt 00:02:06]} 26. Ng4 {[%clk 00:06:43]} {[%emt 00:00:59]} h5
{[%clk 00:06:23]} {[%emt 00:00:39]} 27. Ne5 {[%clk 00:06:36]} {[%emt 00:00:11]}
Kh7 {[%clk 00:04:21]} {[%emt 00:02:08]} 28. f4 {[%clk 00:06:06]} {[%emt
00:00:35]} f6 {[%clk 00:03:22]} {[%emt 00:01:04]} 29. Nf3 {[%clk 00:06:08]}
{[%emt 00:00:03]} Rae7 {[%clk 00:03:25]} {[%emt 00:00:02]} 30. g4 {[%clk
00:03:36]} {[%emt 00:02:37]} Bh6 {[%clk 00:02:08]} {[%emt 00:01:23]} 31. g5
{[%clk 00:03:39]} {[%emt 00:00:02]} fxg5 {[%clk 00:02:12]} {[%emt 00:00:02]} 32.
Nxg5+ {[%clk 00:02:28]} {[%emt 00:01:15]} Bxg5 {[%clk 00:02:09]} {[%emt
00:00:08]} 33. fxg5 {[%clk 00:02:32]} {[%emt 00:00:01]} e5 {[%clk 00:02:04]}
{[%emt 00:00:10]} 34. Qg3 {[%clk 00:02:35]} {[%emt 00:00:01]} Qc7 {[%clk
00:01:36]} {[%emt 00:00:32]} 35. dxe5 {[%clk 00:00:47]} {[%emt 00:01:55]} Rxe5
{[%clk 00:01:24]} {[%emt 00:00:17]} 36. Rxe5 {[%clk 00:00:45]} {[%emt
00:00:07]} Qxe5 {[%clk 00:01:23]} {[%emt 00:00:06]} 37. Qxe5 {[%clk 00:00:39]}
{[%emt 00:00:11]} Rxe5 {[%clk 00:01:27]} {[%emt 00:00:01]} 38. Kf2 {[%clk
00:00:21]} {[%emt 00:00:22]} Kg7 {[%clk 00:01:12]} {[%emt 00:00:21]} 39. b5
{[%clk 00:00:07]} {[%emt 00:00:19]} axb5 {[%clk 00:01:16]} {[%emt 00:00:02]} 40.
Rb1 {[%clk 00:00:11]} d4 {[%clk 00:00:53]} {[%emt 00:00:28]} 41. cxd4 {[%clk
00:00:12]} {[%emt 00:00:04]} Rxg5 {[%clk 00:00:57]} {[%emt 00:00:02]} 42. a6
{[%clk 00:00:07]} {[%emt 00:00:10]} b4 {[%clk 00:00:58]} {[%emt 00:00:04]} 43.
Rxb4 {[%clk 00:00:09]} {[%emt 00:00:03]} Ra5 {[%clk 00:01:01]} {[%emt
00:00:01]} 44. Rb6 {[%clk 00:00:07]} {[%emt 00:00:07]} Kf7 {[%clk 00:00:57]}
{[%emt 00:00:09]} 45. Ke2 {[%clk 00:00:09]} {[%emt 00:00:04]} Ra3 {[%clk
00:00:57]} {[%emt 00:00:05]} 46. h4 {[%clk 00:00:12]} {[%emt 00:00:02]} Rh3
{[%clk 00:00:45]} {[%emt 00:00:16]} 47. Rb8 {[%clk 00:00:06]} {[%emt 00:00:12]}
Ra3 {[%clk 00:00:44]} {[%emt 00:00:06]} 48. Rb6 {[%clk 00:00:11]} Rh3 {[%clk
00:00:45]} {[%emt 00:00:03]} 49. Rb7+ {[%clk 00:00:08]} {[%emt 00:00:09]} Ke6
{[%clk 00:00:48]} {[%emt 00:00:01]} 50. a7 {[%clk 00:00:11]} {[%emt 00:00:02]}
Ra3 {[%clk 00:00:52]} 51. Rg7 {[%clk 00:00:13]} {[%emt 00:00:04]} Kf6 {[%clk
00:00:54]} {[%emt 00:00:02]} 52. Rc7 {[%clk 00:00:16]} {[%emt 00:00:02]} Ke6
{[%clk 00:00:57]} {[%emt 00:00:02]} 53. Kd2 {[%clk 00:00:13]} {[%emt 00:00:08]}
Kd5 {[%clk 00:00:59]} {[%emt 00:00:03]} 54. Rd7+ {[%clk 00:00:17]} {[%emt
00:00:01]} Ke4 {[%clk 00:01:03]} 55. Kc2 {[%clk 00:00:20]} {[%emt 00:00:01]}
Kf5 {[%clk 00:00:35]} {[%emt 00:00:32]} 56. Kb2 {[%clk 00:00:20]} {[%emt
00:00:07]} Ra6 {[%clk 00:00:37]} {[%emt 00:00:04]} 57. Kc3 {[%clk 00:00:14]}
{[%emt 00:00:11]} Ke6 {[%clk 00:00:38]} {[%emt 00:00:03]} 58. Rg7 {[%clk
00:00:16]} {[%emt 00:00:03]} Kd5 {[%clk 00:00:41]} {[%emt 00:00:02]} 59. Rd7+
{[%clk 00:00:19]} {[%emt 00:00:03]} Ke6 {[%clk 00:00:45]} 60. Rb7 {[%clk
00:00:08]} {[%emt 00:00:15]} Kd5 {[%clk 00:00:46]} {[%emt 00:00:04]} 61. Rg7
{[%clk 00:00:07]} {[%emt 00:00:07]} Ra1 {[%clk 00:00:40]} {[%emt 00:00:10]} 62.
Rd7+ {[%clk 00:00:08]} {[%emt 00:00:04]} Kc6 {[%clk 00:00:42]} {[%emt
00:00:03]} 63. Re7 {[%clk 00:00:10]} {[%emt 00:00:02]} Kd6 {[%clk 00:00:33]}
{[%emt 00:00:15]} 64. Rg7 {[%clk 00:00:07]} {[%emt 00:00:07]} Kd5 {[%clk
00:00:37]} {[%emt 00:00:02]} 65. Rxg6 {[%clk 00:00:07]} {[%emt 00:00:06]} Rxa7
{[%clk 00:00:40]} 66. Rg5+ {[%clk 00:00:11]} {[%emt 00:00:01]} Ke4 {[%clk
00:00:44]} {[%emt 00:00:02]} 67. Rxh5 {[%clk 00:00:08]} {[%emt 00:00:07]} Ra3+
{[%clk 00:00:46]} {[%emt 00:00:03]} 68. Kxc4 {[%clk 00:00:08]} {[%emt
00:00:05]} Ra4+ {[%clk 00:00:50]} 69. Kc3 {[%clk 00:00:08]} {[%emt 00:00:05]}
Rxd4 {[%clk 00:00:48]} {[%emt 00:00:08]} 70. Rc5 {[%clk 00:00:11]} {[%emt
00:00:01]} Rd3+ {[%clk 00:00:50]} {[%emt 00:00:02]} 71. Kc4 {[%clk 00:00:14]}
{[%emt 00:00:03]} Rh3 {[%clk 00:00:50]} {[%emt 00:00:03]} 72. Kb5 {[%clk
00:00:18]} {[%emt 00:00:03]} Kf4 {[%clk 00:00:52]} {[%emt 00:00:03]} 73. Rc4+
{[%clk 00:00:19]} {[%emt 00:00:04]} Kf5 {[%clk 00:00:56]} 74. Kc6 {[%clk
00:00:22]} {[%emt 00:00:02]} Kg6 {[%clk 00:00:59]} {[%emt 00:00:02]} 75. Kd6
{[%clk 00:00:24]} {[%emt 00:00:03]} Kh5 {[%clk 00:01:01]} {[%emt 00:00:02]} 76.
Ke5 {[%clk 00:00:27]} {[%emt 00:00:03]} Rxh4 {[%clk 00:01:03]} {[%emt
00:00:03]} 77. Rc8 {[%clk 00:00:30]} {[%emt 00:00:02]} Kg4 {[%clk 00:01:02]}
{[%emt 00:00:06]} 78. Ke4 {[%emt 00:00:06]} 1/2-1/2



[ePGN "0.1;DGT LiveChess/2.2.6"]

[Event "MČR juniorů a juniorek v rapid šachu 2024"]
[Site "Hotel Fit Fun, Harrachov, Czech Republic"]
[Date "2024.09.21"]
[Round "5.30"]
[White "Kopecka Anna"]
[Black "Pes Matej"]
[Result "0-1"]
[TimeControl "20+5"]
[WhiteFideId "23767740"]
[BlackFideId "23766816"]
[WhiteElo "1431"]
[BlackElo "1697"]

1. d4 {[%clk 00:20:08]} {[%emt 00:00:01]} Nf6 {[%clk 00:20:06]} {[%emt
00:00:04]} 2. Nf3 {[%clk 00:20:12]} {[%emt 00:00:01]} d5 {[%clk 00:20:06]}
{[%emt 00:00:05]} 3. e3 {[%clk 00:20:16]} {[%emt 00:00:02]} Bf5 {[%clk
00:20:00]} {[%emt 00:00:11]} 4. Bd3 {[%clk 00:20:19]} {[%emt 00:00:02]} Bxd3
{[%clk 00:19:26]} {[%emt 00:00:39]} 5. Qxd3 {[%clk 00:20:22]} {[%emt 00:00:01]}
e6 {[%clk 00:19:29]} {[%emt 00:00:02]} 6. Nbd2 {[%clk 00:20:24]} {[%emt
00:00:04]} Nbd7 {[%clk 00:19:30]} {[%emt 00:00:04]} 7. b3 {[%clk 00:20:22]}
{[%emt 00:00:07]} c5 {[%clk 00:19:28]} {[%emt 00:00:07]} 8. Bb2 {[%clk
00:19:16]} {[%emt 00:01:10]} Be7 {[%clk 00:19:27]} {[%emt 00:00:06]} 9. O-O
{[%clk 00:19:05]} {[%emt 00:00:16]} O-O {[%clk 00:19:29]} {[%emt 00:00:04]} 10.
Ne5 {[%clk 00:18:29]} {[%emt 00:00:40]} Nxe5 {[%clk 00:19:27]} {[%emt
00:00:08]} 11. dxe5 {[%clk 00:18:32]} {[%emt 00:00:02]} Nd7 {[%clk 00:19:28]}
{[%emt 00:00:04]} 12. f4 {[%clk 00:18:28]} {[%emt 00:00:09]} a6 {[%clk
00:18:50]} {[%emt 00:00:43]} 13. Rf3 {[%clk 00:18:17]} {[%emt 00:00:15]} b5
{[%clk 00:18:22]} {[%emt 00:00:33]} 14. Rh3 {[%clk 00:18:06]} {[%emt 00:00:16]}
g6 {[%clk 00:18:19]} {[%emt 00:00:09]} 15. Rf1 {[%clk 00:16:15]} {[%emt
00:01:55]} c4 {[%clk 00:17:59]} {[%emt 00:00:26]} 16. Qe2 {[%clk 00:15:04]}
{[%emt 00:01:16]} Rc8 {[%clk 00:17:33]} {[%emt 00:00:30]} 17. Bd4 {[%clk
00:14:20]} {[%emt 00:00:49]} Qa5 {[%clk 00:17:04]} {[%emt 00:00:34]} 18. Nf3
{[%clk 00:10:56]} {[%emt 00:03:30]} cxb3 {[%clk 00:15:16]} {[%emt 00:01:53]} 19.
cxb3 {[%clk 00:10:11]} {[%emt 00:00:49]} Nc5 {[%clk 00:14:12]} {[%emt
00:01:09]} 20. Bxc5 {[%clk 00:09:44]} {[%emt 00:00:33]} Rxc5 {[%clk 00:14:03]}
{[%emt 00:00:13]} 21. Nh4 {[%clk 00:07:51]} {[%emt 00:01:58]} Rfc8 {[%clk
00:12:23]} {[%emt 00:01:46]} 22. Nf3 {[%clk 00:06:24]} {[%emt 00:01:31]} Rc2
{[%clk 00:11:27]} {[%emt 00:01:01]} 23. Qe1 {[%clk 00:05:27]} {[%emt 00:01:02]}
Qxa2 {[%clk 00:11:07]} {[%emt 00:00:26]} 24. Nh4 {[%clk 00:01:39]} {[%emt
00:03:53]} Qxb3 {[%clk 00:10:25]} {[%emt 00:00:47]} 25. Rhf3 {[%clk 00:01:07]}
{[%emt 00:00:36]} a5 {[%clk 00:09:41]} {[%emt 00:00:49]} 26. e4 {[%clk
00:00:18]} {[%emt 00:00:54]} R8c3 {[%clk 00:08:52]} {[%emt 00:00:54]} 27. Rxc3
{[%clk 00:00:13]} {[%emt 00:00:10]} Qxc3 {[%clk 00:08:52]} {[%emt 00:00:05]} 28.
Qxc3 {[%clk 00:00:16]} {[%emt 00:00:02]} Rxc3 {[%clk 00:08:55]} {[%emt
00:00:03]} 29. g3 {[%clk 00:00:14]} {[%emt 00:00:07]} a4 {[%clk 00:08:52]}
{[%emt 00:00:07]} 0-1



[ePGN "0.1;DGT LiveChess/2.2.6"]